fUSD/lending_fUSD_20251229
["ID","MTS","AMOUNT","RATE_DAILY","PERIOD"]
[399982306,1766975444116,-5667.4998603,0.00016995,2]
[399982307,1766975444125,-1228.1456035,0.00016995,2]
[399982308,1766975444135,-1968.8953577,0.00016995,2]
[399982309,1766975444144,-1111.23385628,0.00016999,5]
[399982310,1766975444153,-1111.23385629,0.00016999,5]
[399982311,1766975444163,-300.0,0.00016999,2]
[399982312,1766975444172,-300.0,0.00016999,2]
[399982313,1766975444182,-300.0,0.00016999,2]
[399982314,1766975444191,-500.0,0.00016999,2]
[399982315,1766975444202,-500.0,0.00016999,2]
[399982316,1766975444211,-517.28818267,0.00016999,2]
[399982317,1766975444222,-500.0,0.00016999,2]
[399982318,1766975444231,-500.0,0.00016999,2]
[399982319,1766975444240,-521.66547339,0.00016999,2]
[399982320,1766975444250,-300.0,0.00016999,2]
[399982321,1766975444260,-300.0,0.00016999,2]
[399982322,1766975444271,-300.0,0.00016999,2]
[399982323,1766975444280,-300.0,0.00016999,2]
[399982324,1766975444290,-2217.91941554,0.00016999,2]
[399982325,1766975444299,-300.0,0.00016999,2]
[399982326,1766975444309,-150.0,0.00016999,2]
[399982327,1766975444319,-1542475.79890599,0.00017,2]
[399982330,1766975444870,-716.99396338,0.00016019,2]
[399982331,1766975444881,-2473.07117054,0.00016019,2]
[399982335,1766975453352,-270.93486608,0.00016019,2]
[399982336,1766975453362,-1556852.17094141,0.00017,2]
[399982337,1766975453372,-373196.4286133,0.00017,2]
[399982338,1766975453381,-6883614.23839017,0.00017,2]
[399982339,1766975453391,-247483.08858621,0.00017,2]
[399982340,1766975453400,-156225.8272625,0.00017,2]
[399982341,1766975453409,-196.48345852,0.00017,2]
[399982342,1766975453419,-150.0,0.00017,2]
[399982343,1766975453428,-1812.62178612,0.00017,2]
[399982344,1766975453437,-150.0,0.00017,2]
[399982345,1766975453446,-340.31843165,0.00017,2]
[399982346,1766975453457,-150.0,0.00017,2]
[399982347,1766975453468,-12174.91657864,0.00017,2]
[399982348,1766975453478,-151.0,0.00017,2]
[399982349,1766975453487,-151.0,0.00017,2]
[399982350,1766975453496,-250.0,0.00017,2]
[399982351,1766975453506,-150.04,0.00017,2]
[399982352,1766975453516,-151.0,0.00017,2]
[399982353,1766975453525,-151.0,0.00017,2]
[399982354,1766975453535,-151.0,0.00017,2]
[399982355,1766975453544,-151.0,0.00017,2]
[399982356,1766975453554,-151.0,0.00017,2]
[399982357,1766975453563,-151.0,0.00017,2]
[399982358,1766975453572,-151.0,0.00017,2]
[399982359,1766975453582,-14325037.80804017,0.00017,2]
[399982360,1766975453591,-151.0,0.00017,2]
[399982361,1766975453601,-1000.0,0.00017,2]
[399982362,1766975453610,-151.0,0.00017,2]
[399982363,1766975453619,-151.0,0.00017,2]
[399982364,1766975453628,-151.0,0.00017,2]
[399982365,1766975453637,-151.0,0.00017,2]
[399982366,1766975453646,-151.0,0.00017,2]
[399982367,1766975453656,-151.0,0.00017,2]
[399982368,1766975453666,-151.0,0.00017,2]
[399982369,1766975453675,-151.0,0.00017,2]
[399982370,1766975453685,-151.0,0.00017,2]
[399982371,1766975453694,-164.61214,0.00017,2]
[399982372,1766975453703,-151.0,0.00017,2]
[399982373,1766975453713,-151.0,0.00017,2]
[399982374,1766975453722,-151.0,0.00017,2]
[399982375,1766975453731,-191.961295,0.00017,2]
[399982376,1766975453740,-867.959773,0.00017,2]
[399982377,1766975453749,-867.959773,0.00017,2]
[399982378,1766975453758,-867.959773,0.00017,2]
[399982379,1766975453768,-867.959773,0.00017,2]
[399982380,1766975453777,-867.959773,0.00017,2]
[399982381,1766975453786,-867.959773,0.00017,2]
[399982382,1766975453796,-867.959773,0.00017,2]
[399982383,1766975453805,-867.959773,0.00017,2]
[399982384,1766975453814,-462.95159,0.00017,2]
[399982385,1766975453824,-462.95159,0.00017,2]
[399982386,1766975453834,-1082.899379,0.00017,2]
[399982387,1766975453843,-1082.899379,0.00017,2]
[399982388,1766975453853,-462.95159,0.00017,2]
[399982389,1766975453862,-462.95159,0.00017,2]
[399982390,1766975453872,-1082.899379,0.00017,2]
[399982391,1766975453881,-1082.899379,0.00017,2]
[399982392,1766975453891,-462.95159,0.00017,2]
[399982393,1766975453900,-462.95159,0.00017,2]
[399982394,1766975453910,-1082.899379,0.00017,2]
[399982395,1766975453919,-1082.899379,0.00017,2]
[399982396,1766975453928,-462.95159,0.00017,2]
[399982397,1766975453938,-462.95159,0.00017,2]
[399982398,1766975453947,-1082.899379,0.00017,2]
[399982399,1766975453956,-1082.899379,0.00017,2]
[399982400,1766975453966,-207.94281,0.00017,2]
[399982401,1766975453975,-207.94281,0.00017,2]
[399982402,1766975453984,-207.94281,0.00017,2]
[399982403,1766975453994,-207.94281,0.00017,2]
[399982404,1766975454003,-207.94281,0.00017,2]
[399982405,1766975454012,-207.94281,0.00017,2]
[399982406,1766975454021,-207.94281,0.00017,2]
[399982407,1766975454031,-207.94281,0.00017,2]
[399982408,1766975454041,-631.537194,0.00017,2]
[399982409,1766975454050,-631.537194,0.00017,2]
[399982410,1766975454060,-631.537194,0.00017,2]
[399982411,1766975454073,-631.537194,0.00017,2]
[399982412,1766975454082,-631.537194,0.00017,2]
[399982413,1766975454091,-631.537194,0.00017,2]
[399982414,1766975454101,-631.537194,0.00017,2]
[399982415,1766975454110,-631.537194,0.00017,2]
[399982416,1766975454120,-1042.77159364,0.00017,2]
[399982417,1766975454129,-1278261.45241351,0.00017,2]
[399982418,1766975454138,-151.0,0.00017,2]
[399982419,1766975454148,-151.0,0.00017,2]
[399982420,1766975454157,-151.0,0.00017,2]
[399982421,1766975454167,-151.0,0.00017,2]
[399982422,1766975454177,-151.0,0.00017,2]
[399982423,1766975454187,-151.0,0.00017,2]
[399982424,1766975454196,-160.0,0.00017,2]
[399982425,1766975454205,-150.0,0.00017,2]
[399982426,1766975454215,-250.0,0.00017016,2]
[399982427,1766975454224,-250.0,0.00017026,2]
[399982428,1766975454233,-150.0,0.00017028,2]
[399982429,1766975454243,-150.0,0.00017055,2]
[399982430,1766975454253,-181.49,0.00017057,2]
[399982431,1766975454262,-1500.0,0.00017068,2]
[399982432,1766975454274,-1500.0,0.00017068,2]
[399982433,1766975454284,-155.5961582,0.00017068,2]
[399982434,1766975454294,-1500.0,0.00017068,2]
[399982435,1766975454304,-964.59314876,0.00017068,2]
[399982436,1766975454313,-1004.55466728,0.00017068,2]
[399982437,1766975454323,-353.079726,0.00017068,2]
[399982438,1766975454333,-1006.36403286,0.00017068,2]
[399982439,1766975454342,-1500.0,0.00017068,2]
[399982440,1766975454351,-203.46774574,0.00017083,2]
[399982441,1766975454360,-250.0,0.00017085,2]
[399982442,1766975454370,-159.87,0.00017114,2]
[399982443,1766975454379,-250.0,0.00017128,2]
[399982444,1766975454390,-346.92554585,0.00017146,2]
[399982445,1766975454399,-250.0,0.00017177,2]
[399982446,1766975454408,-1000.0,0.00017179,2]
[399982447,1766975454417,-600.0,0.000172,2]
[399982448,1766975454426,-250.0,0.00017225,2]
[399982449,1766975454436,-250.0,0.0001726,2]
[399982450,1766975454445,-736.0,0.00017285,2]
[399982451,1766975454455,-2000.0,0.000173,2]
[399982452,1766975454469,-250.0,0.00017367,2]
[399982453,1766975454478,-250.0,0.00017424,2]
[399982454,1766975454488,-250.0,0.00017433,2]
[399982455,1766975454499,-250.0,0.00017473,2]
[399982456,1766975454508,-250.0,0.00017473,2]
[399982457,1766975454517,-1000.0,0.00017484,2]
[399982458,1766975454526,-250.0,0.00017487,2]
[399982459,1766975454536,-250.0,0.00017509,2]
[399982460,1766975454546,-250.0,0.00017528,2]
[399982461,1766975454555,-1600.0,0.00017548,2]
[399982462,1766975454564,-166.66,0.00017585,2]
[399982463,1766975454573,-1000.0,0.00017595,2]
[399982464,1766975454582,-2000.0,0.00017616,2]
[399982465,1766975454591,-2000.0,0.00017616,2]
[399982466,1766975454601,-2000.0,0.00017616,2]
[399982467,1766975454611,-2090.99045312,0.00017616,2]
[399982468,1766975454620,-250.0,0.00017646,2]
[399982469,1766975454630,-250.0,0.00017658,2]
[399982470,1766975454640,-250.0,0.00017703,2]
[399982471,1766975454649,-160.47,0.0001771,2]
[399982472,1766975454669,-1000.0,0.00017748,2]
[399982473,1766975454678,-151.8180926,0.00017758,2]
[399982474,1766975454688,-500.0,0.00017808,2]
[399982475,1766975454698,-500.0,0.00017808,2]
[399982476,1766975454707,-201.93286099,0.00017808,2]
[399982477,1766975454717,-508.63346213,0.00017835,2]
[399982478,1766975454728,-500.0,0.00017835,2]
[399982479,1766975454737,-250.0,0.00017837,2]
[399982480,1766975454747,-636.03462142,0.00017863,2]
[399982481,1766975454759,-199.62,0.00017872,2]
[399982482,1766975454769,-177.09,0.00017879,2]
[399982483,1766975454778,-1702.37,0.00017879,2]
[399982484,1766975454787,-357.24,0.00017879,2]
[399982485,1766975454796,-180.63,0.00017879,2]
[399982486,1766975454806,-178.62,0.00017879,2]
[399982487,1766975454815,-1221.52,0.00017879,2]
[399982488,1766975454824,-357.1,0.00017879,2]
[399982489,1766975454833,-1221.52,0.00017879,2]
[399982490,1766975454842,-1221.52,0.00017879,2]
[399982491,1766975454851,-1221.52,0.00017879,2]
[399982492,1766975454861,-1221.52,0.00017879,2]
[399982493,1766975454870,-300.55935655,0.000179,2]
[399982494,1766975454879,-250.0,0.00017952,2]
[399982495,1766975454889,-823.0,0.00017959,2]
[399982496,1766975454898,-823.0,0.00017959,2]
[399982497,1766975454908,-1000.0,0.00017978,2]
[399982498,1766975454919,-165.05,0.00017982,2]
[399982499,1766975454929,-1000.0,0.00017987,2]
[399982500,1766975454938,-250.0,0.00017993,2]
[399982501,1766975454947,-300.0,0.00017999,2]
[399982502,1766975454957,-300.0,0.00017999,2]
[399982503,1766975454966,-300.0,0.00017999,2]
[399982504,1766975454977,-300.0,0.00017999,2]
[399982505,1766975454986,-300.0,0.00017999,2]
[399982506,1766975454995,-300.0,0.00017999,2]
[399982507,1766975455004,-56660.96617412,0.00018,2]
[399982508,1766975455014,-164.51,0.00018,14]
[399982509,1766975455024,-8686.6916815,0.00018,7]
[399982510,1766975455034,-263488.60334165,0.00018,2]
[399982511,1766975455044,-50037.63338936,0.00018,2]
[399982512,1766975455053,-242.1308014,0.00018,2]
[399982513,1766975455062,-778.92052443,0.00018,2]
[399982514,1766975455071,-689985.84539332,0.00018,2]
[399982515,1766975455080,-151.0,0.00018,2]
[399982516,1766975455090,-151.0,0.00018,2]
[399982517,1766975455101,-233.37032883,0.00018,2]
[399982518,1766975455112,-203.815627,0.00018,2]
[399982519,1766975455122,-250.0,0.00018032,2]
[399982520,1766975455132,-2999.98,0.00018045,2]
[399982521,1766975455144,-159.87,0.00018065,2]
[399982522,1766975455155,-250.0,0.00018065,2]
[399982523,1766975455164,-1000.0,0.00018082,2]
[399982524,1766975455175,-1774.3244335,0.000181,2]
[399982525,1766975455185,-3292.0,0.00018158,2]
[399982526,1766975455195,-675.74712058,0.00018164,2]
[399982527,1766975455204,-1119.74382784,0.00018164,2]
[399982528,1766975455214,-2500.0,0.00018164,2]
[399982529,1766975455223,-250.0,0.00018176,2]
[399982530,1766975455233,-250.0,0.00018196,2]
[399982531,1766975455242,-600.0,0.000182,3]
[399982532,1766975455251,-5021.88335055,0.000182,3]
[399982533,1766975455261,-250.0,0.00018257,2]
[399982534,1766975455272,-500.0,0.00018273,2]
[399982535,1766975455281,-2141.11723593,0.00018273,2]
[399982536,1766975455292,-200.0,0.00018319,2]
[399982537,1766975455302,-300.0,0.00018355,2]
[399982538,1766975455311,-300.0,0.00018355,2]
[399982539,1766975455321,-300.0,0.00018355,2]
[399982540,1766975455330,-300.0,0.00018355,2]
[399982541,1766975455339,-88209.84,0.00018356,2]
[399982542,1766975455348,-1000.0,0.00018383,2]
[399982543,1766975455357,-1000.0,0.00018441,2]
[399982544,1766975455367,-1000.0,0.00018456,2]
[399982545,1766975455377,-1051.60698402,0.000185,2]
[399982546,1766975455386,-359.76179104,0.00018515,2]
[399982547,1766975455396,-1000.0,0.00018625,2]
[399982548,1766975455406,-519.0,0.00018704,2]
[399982549,1766975455415,-3000.0,0.00018712,2]
[399982550,1766975455424,-439.61,0.0001873,2]
[399982551,1766975455433,-1000.0,0.0001876,2]
[399982552,1766975455443,-151.04,0.000188,2]
[399982553,1766975455453,-151.04,0.000188,2]
[399982554,1766975455466,-151.04,0.000188,2]
[399982555,1766975455475,-151.04,0.000188,2]
[399982556,1766975455485,-151.04,0.000188,2]
[399982557,1766975455495,-151.04,0.000188,2]
[399982558,1766975455505,-151.04,0.000188,2]
[399982559,1766975455515,-151.04,0.000188,2]
[399982560,1766975455525,-151.04,0.000188,2]
[399982561,1766975455537,-151.04,0.000188,2]
[399982562,1766975455548,-151.04,0.000188,2]
[399982563,1766975455557,-151.04,0.000188,2]
[399982564,1766975455566,-151.04,0.000188,2]
[399982565,1766975455576,-151.04,0.000188,2]
[399982566,1766975455585,-151.04,0.000188,2]
[399982567,1766975455594,-151.04,0.000188,2]
[399982568,1766975455604,-151.04,0.000188,2]
[399982569,1766975455613,-151.04,0.000188,2]
[399982570,1766975455623,-151.04,0.000188,2]
[399982571,1766975455632,-151.04,0.000188,2]
[399982572,1766975455641,-151.04,0.000188,2]
[399982573,1766975455651,-151.04,0.000188,2]
[399982574,1766975455660,-151.04,0.000188,2]
[399982575,1766975455669,-151.04,0.000188,2]
[399982576,1766975455679,-151.04,0.000188,2]
[399982577,1766975455688,-151.04,0.000188,2]
[399982578,1766975455697,-151.04,0.000188,2]
[399982579,1766975455707,-151.04,0.000188,2]
[399982580,1766975455716,-151.04,0.000188,2]
[399982581,1766975455725,-151.04,0.000188,2]
[399982582,1766975455735,-151.04,0.000188,2]
[399982583,1766975455745,-151.04,0.000188,2]
[399982584,1766975455756,-151.04,0.000188,2]
[399982585,1766975455766,-151.04,0.000188,2]
[399982586,1766975455776,-151.04,0.000188,2]
[399982587,1766975455785,-151.04,0.000188,2]
[399982588,1766975455799,-151.04,0.000188,2]
[399982589,1766975455808,-151.04,0.000188,2]
[399982590,1766975455819,-151.04,0.000188,2]
[399982591,1766975455828,-151.04,0.000188,2]
[399982592,1766975455837,-151.04,0.000188,2]
[399982593,1766975455847,-151.04,0.000188,2]
[399982594,1766975455856,-151.04,0.000188,2]
[399982595,1766975455866,-151.04,0.000188,2]
[399982596,1766975455876,-151.04,0.000188,2]
[399982597,1766975455886,-151.04,0.000188,2]
[399982598,1766975455895,-151.04,0.000188,2]
[399982599,1766975455905,-151.04,0.000188,2]
[399982600,1766975455914,-151.04,0.000188,2]
[399982601,1766975455924,-151.04,0.000188,2]
[399982602,1766975455933,-151.04,0.000188,2]
[399982603,1766975455943,-151.04,0.000188,2]
[399982604,1766975455953,-151.04,0.000188,2]
[399982605,1766975455962,-151.04,0.000188,2]
[399982606,1766975455972,-151.04,0.000188,2]
[399982607,1766975455981,-151.04,0.000188,2]
[399982608,1766975455990,-151.04,0.000188,2]
[399982609,1766975456000,-151.04,0.000188,2]
[399982610,1766975456009,-151.04,0.000188,2]
[399982611,1766975456019,-151.04,0.000188,2]
[399982612,1766975456028,-151.04,0.000188,2]
[399982613,1766975456038,-151.04,0.000188,2]
[399982614,1766975456050,-151.04,0.000188,2]
[399982615,1766975456059,-151.04,0.000188,2]
[399982616,1766975456069,-150.0,0.00018835,2]
[399982617,1766975456078,-150.0,0.00018835,2]
[399982618,1766975456088,-150.0,0.00018835,2]
[399982619,1766975456098,-164.16467567,0.000189,2]
[399982620,1766975456108,-300.0,0.00018999,2]
[399982621,1766975456120,-300.0,0.00018999,2]
[399982622,1766975456131,-4769.11584416,0.00019,2]
[399982623,1766975456141,-1179.24597429,0.00019,2]
[399982624,1766975456150,-331366.16857581,0.00019,2]
[399982625,1766975456160,-331366.16857581,0.00019,2]
[399982626,1766975456171,-300.0,0.00019,2]
[399982627,1766975456181,-151.0,0.00019,2]
[399982628,1766975456192,-151.0,0.00019,2]
[399982629,1766975456202,-151.0,0.00019,2]
[399982630,1766975456211,-151.0,0.00019,2]
[399982631,1766975456221,-151.0,0.00019,2]
[399982632,1766975456231,-151.0,0.00019,2]
[399982633,1766975456242,-151.0,0.00019,2]
[399982634,1766975456252,-151.0,0.00019,2]
[399982635,1766975456262,-151.0,0.00019,2]
[399982636,1766975456272,-151.0,0.00019,2]
[399982637,1766975456282,-5154.12514918,0.00019,2]
[399982638,1766975456293,-151.0,0.00019,2]
[399982639,1766975456304,-159.87,0.00019016,2]
[399982640,1766975456313,-150.0,0.00019019,2]
[399982641,1766975456323,-150.0,0.00019019,2]
[399982642,1766975456332,-150.0,0.00019019,2]
[399982643,1766975456341,-150.0,0.00019019,2]
[399982644,1766975456351,-150.0,0.00019019,2]
[399982645,1766975456361,-150.0,0.00019019,2]
[399982646,1766975456370,-150.0,0.00019019,2]
[399982647,1766975456380,-150.0,0.00019019,2]
[399982648,1766975456389,-150.0,0.00019019,2]
[399982649,1766975456398,-1264.0,0.00019019,2]
[399982650,1766975456408,-432.0,0.00019019,2]
[399982651,1766975456418,-1199.0,0.00019019,2]
[399982652,1766975456428,-912.0,0.00019019,2]
[399982653,1766975456438,-613.0,0.00019019,2]
[399982654,1766975456449,-2432.0,0.00019019,2]
[399982655,1766975456463,-4810.0,0.00019019,2]
[399982656,1766975456472,-3461.0,0.00019019,2]
[399982657,1766975456483,-579.83007392,0.00019026,2]
[399982658,1766975456494,-199.62,0.00019111,2]
[399982659,1766975456504,-151.8180926,0.00019124,2]
[399982660,1766975456514,-1264.5901514,0.00019148,2]
[399982661,1766975456524,-209.40437684,0.00019177,2]
[399982662,1766975456535,-3000.0,0.00019178,2]
[399982663,1766975456545,-3022.45892197,0.00019178,7]
[399982664,1766975456555,-155.37933523,0.00019178,2]
[399982665,1766975456564,-151.0,0.00019178,2]
[399982666,1766975456574,-151.0,0.00019178,2]
[399982667,1766975456585,-151.0,0.00019178,2]
[399982668,1766975456594,-151.0,0.00019178,2]
[399982669,1766975456604,-151.0,0.00019178,2]
[399982670,1766975456614,-151.0,0.00019178,2]
[399982671,1766975456623,-151.0,0.00019178,2]
[399982672,1766975456633,-151.0,0.00019178,2]
[399982673,1766975456643,-151.0,0.00019178,2]
[399982674,1766975456653,-151.0,0.00019178,2]
[399982675,1766975456663,-151.0,0.00019178,2]
[399982676,1766975456674,-151.0,0.00019178,2]
[399982677,1766975456684,-151.0,0.00019178,2]
[399982678,1766975456693,-151.0,0.00019178,2]
[399982679,1766975456702,-151.0,0.00019178,2]
[399982680,1766975456711,-151.0,0.00019178,2]
[399982681,1766975456721,-151.0,0.00019178,2]
[399982682,1766975456730,-179.105124,0.00019178,2]
[399982683,1766975456739,-159.91727219,0.00019178,2]
[399982684,1766975456749,-150.0,0.00019178,2]
[399982685,1766975456758,-150.0,0.00019203,2]
[399982686,1766975456768,-300.0,0.00019254,2]
[399982687,1766975456778,-3500.0,0.0001926,2]
[399982688,1766975456788,-1600.0,0.00019303,2]
[399982689,1766975456799,-199.62,0.00019318,2]
[399982690,1766975456808,-1000.0,0.00019373,2]
[399982691,1766975456817,-1000.0,0.00019379,2]
[399982692,1766975456827,-1000.0,0.00019438,2]
[399982693,1766975456836,-150.0,0.00019463,2]
[399982694,1766975456846,-1000.0,0.00019501,2]
[399982695,1766975456855,-1000.0,0.00019573,2]
[399982696,1766975456865,-282.168203,0.00019628,2]
[399982697,1766975456874,-150.0,0.0001965,2]
[399982698,1766975456884,-1152.0,0.00019682,2]
[399982699,1766975456894,-1152.0,0.00019682,2]
[399982700,1766975456903,-751.06041003,0.00019726,2]
[399982701,1766975456912,-360.11630372,0.00019726,2]
[399982702,1766975456921,-300.0,0.00019799,2]
[399982703,1766975456931,-50000.0,0.000198,3]
[399982704,1766975456940,-4000.0,0.00019808,2]
[399982705,1766975456949,-500.0,0.00019808,2]
[399982706,1766975456959,-1141.80946374,0.0001981,2]
[399982707,1766975456968,-150.88423257,0.00019844,7]
[399982708,1766975456978,-150.88423256,0.00019844,7]
[399982709,1766975456988,-300.0,0.00019876,2]
[399982710,1766975456997,-373.07297731,0.00019884,2]
[399982711,1766975457007,-3155.0,0.00019887,2]
[399982712,1766975457016,-4908.51589828,0.000199,3]
[399982713,1766975457026,-3581.20436404,0.000199,2]
[399982714,1766975457036,-631.537194,0.000199,2]
[399982715,1766975457046,-631.537194,0.000199,2]
[399982716,1766975457056,-631.537194,0.000199,2]
[399982717,1766975457065,-631.537194,0.000199,2]
[399982718,1766975457075,-305.2649928,0.00019926,2]
[399982719,1766975457085,-689.88672182,0.0001995,15]
[399982720,1766975457095,-150.0,0.00019951,2]
[399982721,1766975457105,-1000.0,0.00019957,2]
[399982722,1766975457114,-159.87,0.00019967,2]
[399982723,1766975457123,-300.0,0.00019972,2]
[399982724,1766975457134,-4609.0,0.00019974,2]
[399982725,1766975457146,-307.4523728,0.00019999,2]
[399982726,1766975457157,-151.0,0.0002,2]
[399982727,1766975457167,-200.0,0.0002,2]
[399982728,1766975457177,-188.0,0.0002,2]
[399982729,1766975457188,-378475.80517724,0.0002,5]
[399982730,1766975457199,-500.0,0.0002,2]
[399982731,1766975457209,-398.0,0.0002,2]
[399982732,1766975457219,-200000.0,0.0002,2]
[399982733,1766975457230,-1529.41856461,0.0002,2]
[399982734,1766975457240,-151.0,0.0002,2]
[399982735,1766975457250,-151.0,0.0002,2]
[399982736,1766975457259,-151.0,0.0002,2]
[399982737,1766975457269,-151.0,0.0002,2]
[399982738,1766975457280,-867.959773,0.0002,2]
[399982739,1766975457290,-867.959773,0.0002,2]
[399982740,1766975457302,-867.959773,0.0002,2]
[399982741,1766975457313,-867.959773,0.0002,2]
[399982742,1766975457323,-462.95159,0.0002,2]
[399982743,1766975457332,-1082.899379,0.0002,2]
[399982744,1766975457342,-462.95159,0.0002,2]
[399982745,1766975457351,-1082.899379,0.0002,2]
[399982746,1766975457361,-462.95159,0.0002,2]
[399982747,1766975457372,-1082.899379,0.0002,2]
[399982748,1766975457385,-462.95159,0.0002,2]
[399982749,1766975457398,-1082.899379,0.0002,2]
[399982750,1766975457410,-207.94281,0.0002,2]
[399982751,1766975457420,-207.94281,0.0002,2]
[399982752,1766975457431,-151.0,0.0002,2]
[399982753,1766975457441,-207.94281,0.0002,2]
[399982754,1766975457452,-151.0,0.0002,2]
[399982755,1766975457466,-207.94281,0.0002,2]
[399982756,1766975457476,-151.0,0.0002,2]
[399982757,1766975457485,-186.82,0.0002,2]
[399982758,1766975457498,-6881.76090525,0.0002,2]
[399982759,1766975457508,-200.0,0.0002,2]
[399982760,1766975457518,-500.0,0.00020001,2]
[399982761,1766975457528,-500.0,0.00020002,2]
[399982762,1766975457539,-499.9999,0.00020003,2]
[399982763,1766975457550,-301.76846514,0.00020054,7]
[399982764,1766975457560,-150.0,0.00020056,2]
[399982765,1766975457570,-300.0,0.00020068,2]
[399982766,1766975457580,-300.0,0.00020069,2]
[399982767,1766975457590,-300.0,0.00020097,2]
[399982768,1766975457601,-500.0,0.0002011,2]
[399982769,1766975457611,-1000.0,0.00020116,2]
[399982770,1766975457622,-1000.0,0.00020117,2]
[399982771,1766975457634,-993.67,0.00020187,2]
[399982772,1766975457644,-250.0,0.00020198,2]
[399982773,1766975457656,-2000.0,0.000202,2]
[399982774,1766975457665,-2000.0,0.0002021,2]
[399982775,1766975457675,-2000.0,0.0002022,2]
[399982776,1766975457686,-2580.478092,0.0002023,2]
[399982777,1766975457695,-389.08785975,0.00020356,2]
[399982778,1766975457705,-151.8180926,0.0002049,2]
[399982779,1766975457715,-481.65,0.0002051,2]
[399982780,1766975457724,-217.15233878,0.00020546,2]
[399982781,1766975457734,-192.48,0.00020548,2]
[399982782,1766975457744,-223.43220167,0.0002063,7]
[399982783,1766975457754,-500.0,0.0002066,3]
[399982784,1766975457764,-350.0,0.00020746,2]
[399982785,1766975457774,-1000.0,0.00020795,2]
[399982786,1766975457783,-170.94,0.00020849,2]
[399982787,1766975457792,-170.94,0.00020849,2]
[399982788,1766975457802,-170.94,0.00020849,2]
[399982789,1766975457812,-170.94,0.00020849,2]
[399982790,1766975457821,-481.65,0.00020894,2]
[399982791,1766975457831,-16800.0,0.00021,2]
[399982792,1766975457840,-350.0,0.00021,2]
[399982793,1766975457850,-2000.0,0.00021,2]
[399982794,1766975457859,-1600.0,0.00021058,2]
[399982795,1766975457869,-6854.19,0.00021068,2]
[399982796,1766975457879,-313.29577552,0.00021077,2]
[399982797,1766975457888,-667.38,0.00021084,2]
[399982798,1766975457898,-234.18,0.00021178,2]
[399982799,1766975457908,-178.66,0.00021178,2]
[399982800,1766975457917,-150.0,0.00021178,2]
[399982801,1766975457927,-1221.52,0.00021178,2]
[399982802,1766975457937,-465.41,0.00021178,2]
[399982803,1766975457947,-465.41,0.00021178,2]
[399982804,1766975457956,-1221.52,0.00021178,2]
[399982805,1766975457966,-178.66,0.00021178,2]
[399982806,1766975457975,-178.66,0.00021178,2]
[399982807,1766975457985,-1221.52,0.00021178,2]
[399982808,1766975457994,-465.41,0.00021178,2]
[399982809,1766975458003,-178.66,0.00021178,2]
[399982810,1766975458013,-1221.52,0.00021178,2]